[Event "Icelandic Championship 2024"]
[Site "Mosfellsbaer"]
[Date "2024.04.17"]
[Round "2.2"]
[White "Heimisson, Hilmir Freyr"]
[Black "Gretarsson, Hjorvar Steinn"]
[Result "1-0"]
[ECO "B90"]
[WhiteElo "2361"]
[BlackElo "2518"]
[Annotator "TA"]
[PlyCount "123"]
[EventDate "2024.04.16"]
[EventType "tourn"]
[EventCountry "ISL"]
[SourceTitle "playchess.com"]
[Source "ChessBase"]
[SourceQuality "1"]
[TimeControl "40/5400+30:1800+30"]

{[%evp 43,123,-73,-70,-75,-81,-122,-25,-18,-32,-275,-271,-293,-276,-318,-329,-329,-230,-244,-232,-210,-225,-341,-175,-113,-123,-185,-70,-504,-484,-472,-415,-350,-70,-73,0,0,0,0,0,0,55,50,498,68,137,144,193,0,446,461,558,539,537,334,486,486,455,477,648,647,613,637,1208,1319,1322,1285,1083,935,1694,1599,2302,2497,7056,6998,4906,6299,29948,10796,29986,29987,29990,29991]} 1. e4 {[%emt 0:00:10]} c5 {[%emt 0:00:15]} 2. Nf3 {[%emt 0:00:09]} d6 {[%emt 0:00:12]} 3. d4 {[%emt 0:00:16]} cxd4 {[%emt 0:00:05]} 4. Nxd4 {[%emt 0:00:08]} Nf6 {[%emt 0:00:04]} 5. Nc3 {[%emt 0:00:13]} a6 {[%emt 0:00:03]} 6. Rg1 {[%emt 0:00:31]} e5 {[%emt 0:02:25]} 7. Nb3 {[%emt 0:00:10]} h5 {[%emt 0:00:33]} 8. Be3 {[%emt 0:04:19]} Be6 {[%emt 0:02:26]} 9. h3 {[%emt 0:02:36]} h4 {[%emt 0:01:27]} 10. Qd2 {[%emt 0:03:17]} Nbd7 {[%emt 0:00:46]} 11. O-O-O {[%emt 0:02:19]} Be7 {[%emt 0:03:49]} 12. f4 {[%emt 0:05:27]} exf4 {[%emt 0:00:22]} 13. Bxf4 {[%emt 0:00:10]} Nh5 {[%emt 0:00:05]} 14. Be3 {[%emt 0:00:57]} Ng3 {[%emt 0:02:00]} 15. Nd4 {[%emt 0:10:17]} Ne5 {[%emt 0:04:54]} 16. Nxe6 {[%emt 0:06:29]} fxe6 {[%emt 0:00:06]} 17. Kb1 {[%emt 0:00:06]} O-O {[%emt 0:08:19]} 18. Bd3 {[%emt 0:11:41]} Rc8 {[%emt 0:09:58]} 19. Ne2 {[%emt 0:01:12]} Bf6 {[%emt 0:06:56]} 20. Nxg3 {[%emt 0:07:10]} hxg3 {[%emt 0:00:20]} 21. Qb4 {[%emt 0:00:08]} b5 {[%emt 0:07:51]} 22. Be2 {[%emt 0:07:20]} Nc4 {[%emt 0:11:01]} 23. Bc1 {[%emt 0:06:44]} Be5 {[%emt 0:13:52]} 24. Bg4 {[%emt 0:02:08]} Qf6 {[%emt 0:02:36]} (24... Qe8 $17 25. Rge1 a5 (25... Rf2 26. Re2 $17)) 25. Rd3 $11 {[%emt 0:03:26]} a5 {[%emt 0:09:58]} 26. Qb3 $2 {[%emt 0:05:21]} (26. Qxb5 $2 Qf2 27. a4 (27. Bxe6+ $2 Kh7 $19) 27... Qxg1 $19) (26. Qe1 $1 $15) 26... a4 $1 $19 {[%emt 0:01:48]} 27. Qb4 {[%emt 0:00:37]} (27. Qxb5 Qf2 28. Qxa4 (28. Bxe6+ $2 Kh7 $19) 28... Qxg1 $19) 27... Qf2 $1 {[%emt 0:01:13]} 28. Bxe6+ {[%emt 0:14:58]} Kh8 {[%emt 0:00:08]} 29. Rdd1 {[%emt 0:00:32]} a3 {[%emt 0:04:11]} 30. Bxc4 {[%emt 0:01:36]} (30. Bxc8 axb2 $19) 30... bxc4 {[%emt 0:02:11]} 31. Qxa3 {[%emt 0:03:22]} Rb8 {[%emt 0:01:51]} 32. c3 {[%emt 0:01:22]} (32. Rde1 {keeps fighting.}) 32... Ra8 {[%emt 0:03:45]} (32... Rf7 $142 {aiming for ...Ra7.} 33. Rdf1 Qxf1 34. Rxf1 Rxf1) 33. Qb4 $19 {[%emt 0:00:34]} Rfc8 $1 {[%emt 0:00:25]} 34. Rgf1 {[%emt 0:01:04]} (34. a4 $17) 34... Qa7 {[%emt 0:00:07]} ({Black should play} 34... Qxg2 $19 35. Qb7 Rab8 (35... Qxh3 $2 36. Rh1 $18)) 35. a4 $2 {[%emt 0:00:16][%mdl 8192]} (35. Rd5 $1 $15) 35... Rab8 $1 $19 {[%emt 0:00:43]} 36. Qa3 {[%emt 0:00:01]} Rb3 {[%emt 0:00:27]} 37. Qa2 {[%emt 0:00:01]} Rcb8 $2 {[%emt 0:01:04]} (37... Bxc3 $19 38. a5 Be5 (38... Bxa5 39. Rf5 $11)) 38. Kc2 $1 $15 {[%emt 0:00:47] [#]} Qe7 {[%emt 0:00:36]} (38... Qa8 $1 $17 {[%cal Ra8e4]} 39. Rde1 (39. Rd5 Rf8 $17) 39... R8b5) 39. Rde1 $1 $11 {[%emt 0:00:50]} Rf8 {[%emt 0:00:29]} 40. Rxf8+ {[%emt 0:00:56]} Qxf8 {[%emt 0:00:04]} 41. Be3 {[%emt 0:01:30]} Qf6 {[%emt 0:04:13]} (41... d5 $1 $11 42. Qa1 (42. exd5 $2 {perishes.} Qf5+ 43. Kd1 Qd3+ 44. Bd2 Bxc3 $19) 42... d4 43. Bxd4 (43. cxd4 Rxe3 44. Rxe3 Qf2+ 45. Kb1 Bxd4 $19) 43... Bxd4) 42. Qa1 $1 $14 {[%emt 0:03:21]} Qe6 $2 {[%emt 0:11:56][%mdl 8192] [#]} ({Black should try} 42... d5 $1 $14) 43. Bg1 $2 {[%emt 0:03:53]} (43. a5 $1 $18) 43... Qc8 {[%emt 0:00:59]} (43... d5 $1 $14) 44. a5 $16 {[%emt 0:03:22]} Qa6 {[%emt 0:00:06]} 45. Rd1 $2 {[%emt 0:10:28]} (45. Qa4 $18) 45... Rb8 $2 {[%emt 0:01:32][%mdl 8192]} (45... Qa8 $11 {and Black is okay.} 46. Re1 Qa6) 46. Rd5 $18 {[%emt 0:02:31]} Ra8 {[%emt 0:04:08]} 47. Qa4 {[%emt 0:01:25]} Rf8 {[%emt 0:01:04]} 48. Rd1 {[%emt 0:02:31]} Kh7 {[%emt 0:04:36]} (48... Qa8 {might work better.} 49. Rd5 (49. Qxc4 Qxa5 50. Rd5 Qa1 $16) 49... Qa6) 49. Bb6 $18 {[%emt 0:00:29]} Rf4 {[%emt 0:03:44]} 50. Re1 {[%emt 0:01:44]} Qc8 {[%emt 0:02:02]} 51. a6 {[%emt 0:02:31]} Rf8 {[%emt 0:00:24]} 52. Bg1 {[%emt 0:00:46]} Rf2+ {[%emt 0:01:45]} 53. Bxf2 {[%emt 0:00:55]} gxf2 {[%emt 0:00:06]} 54. Rf1 {[%emt 0:00:02]} Qc5 {[%emt 0:00:05]} 55. Kb1 {[%emt 0:01:21]} Qe3 {[%emt 0:00:17]} 56. Qc2 {[%emt 0:00:28]} Bg3 {[%emt 0:00:25]} 57. e5+ {[%emt 0:00:43]} g6 {[%emt 0:00:02]} 58. exd6 {[%emt 0:00:43]} Qe1+ {[%emt 0:00:07]} 59. Qd1 {[%emt 0:00:25]} Qe4+ {[%emt 0:00:52]} 60. Ka2 {[%emt 0:00:06]} Qxg2 {[%emt 0:00:26]} 61. d7 {[%emt 0:00:34]} Bh4 {[%emt 0:00:04]} 62. Qg4 {[%emt 0:01:22]} 1-0

[Event "Icelandic Championship 2024"]
[Site "Mosfellsbaer"]
[Date "2024.04.17"]
[Round "2.3"]
[White "Stefansson, Hannes"]
[Black "Ragnarsson, Dagur"]
[Result "1-0"]
[ECO "D58"]
[WhiteElo "2493"]
[BlackElo "2333"]
[Annotator "TA"]
[PlyCount "63"]
[EventDate "2024.04.16"]
[EventType "tourn"]
[EventCountry "ISL"]
[SourceTitle "playchess.com"]
[Source "ChessBase"]
[SourceQuality "1"]
[TimeControl "40/5400+30:1800+30"]

{[%evp 25,63,22,19,10,22,12,21,-10,8,10,100,104,164,164,145,165,158,157,170,164,169,173,180,181,204,202,209,200,210,196,229,222,316,315,391,349,532,513,525,524]} 1. Nf3 {[%emt 0:00:19]} d5 {[%emt 0:01:16]} 2. d4 {[%emt 0:00:35]} Nf6 {[%emt 0:00:47]} 3. c4 {[%emt 0:00:36]} e6 {[%emt 0:02:49]} 4. Bg5 {[%emt 0:02:43]} Be7 {[%emt 0:02:34]} 5. Nc3 {[%emt 0:04:38]} h6 {[%emt 0:00:09]} 6. Bh4 {[%emt 0:01:17]} O-O {[%emt 0:00:40]} 7. e3 {[%emt 0:00:32]} b6 {[%emt 0:01:37]} 8. Rc1 {[%emt 0:03:33]} Bb7 {[%emt 0:02:16]} 9. Bxf6 {[%emt 0:02:01]} Bxf6 {[%emt 0:00:06]} 10. cxd5 {[%emt 0:00:30]} exd5 {[%emt 0:00:06]} 11. b4 {[%emt 0:01:13]} c6 {[%emt 0:00:03]} 12. Bd3 {[%emt 0:02:27]} Re8 {[%emt 0:06:02]} 13. O-O {[%emt 0:01:05]} Nd7 {[%emt 0:04:02][%cal Bb8d7,Bd7f8,Bf8e6][%mdl 32]} 14. Qb3 {[%emt 0:02:21]} Nf8 {[%emt 0:03:39]} 15. Rfd1 {[%emt 0:04:10]} Ne6 {[%emt 0:06:04]} 16. Bb1 {[%emt 0:03:36] The position is equal.} Qd6 {[%emt 0:15:31]} 17. a4 {[%emt 0:12:01]} a5 {[%emt 0:15:27]} (17... Rac8 $11 {keeps the balance.}) 18. bxa5 $16 {[%emt 0:08:06]} bxa5 {[%emt 0:00:31] [#]} 19. Nxd5 $1 $18 {[%emt 0:01:49]} ({Weaker is} 19. Qxb7 Reb8 20. Nb5 (20. Bh7+ Kf8 $11) 20... cxb5 $11) 19... cxd5 {[%emt 0:04:07]} 20. Qxb7 {[%emt 0:00:06]} Reb8 {[%emt 0:14:02]} 21. Qc6 {[%emt 0:00:17] White has more active pieces.} Ra6 {[%emt 0:00:02]} 22. Qxd6 {[%emt 0:01:15]} Rxd6 {[%emt 0:00:03][%cal Ba6d6,Bd6d8,Bd8a8,Ba8b8,Bb8b5][%mdl 32]} 23. Bd3 {[%emt 0:02:00]} Kf8 {[%emt 0:04:12]} 24. Bb5 {[%emt 0:01:48]} Ke7 {[%emt 0:00:35]} 25. Rc2 {[%emt 0:06:06][%cal Bc1c2,Bc2c6,Bc6a6][%mdl 32]} Rdd8 {[%emt 0:02:48]} 26. Rdc1 {[%emt 0:03:46]} Rb6 {[%emt 0:00:04]} 27. Nd2 {[%emt 0:01:19][%cal Bf3d2,Bd2b3,Bb3a5][%mdl 32]} Ra8 {[%emt 0:03:27]} 28. Nb3 {[%emt 0:00:22]} Kd8 {[%emt 0:01:15]} (28... Kd6 $142 29. Rc6+ Rxc6 30. Rxc6+ Ke7) 29. Rc6 {[%emt 0:04:27]} Rab8 {[%emt 0:02:21]} 30. Nxa5 {[%emt 0:01:05]} Rxb5 {[%emt 0:00:51]} (30... Ke7 $142 31. Rxb6 Rxb6 32. Nc6+ Kf8) 31. axb5 {[%emt 0:00:27]} Rxb5 {[%emt 0:00:06]} 32. Ra6 {[%emt 0:01:31] White took control after the opening.   Weighted Error Value: White=0.03 (flawless) /Black=0.42.  Mistake:       	---       	Black=4      Inaccurate:     	White=1     	---        OK:         	White=11    	Black=1      Strong:       	White=1     	---} 1-0

[Event "Icelandic Championship 2024"]
[Site "Mosfellsbaer"]
[Date "2024.04.17"]
[Round "2.4"]
[White "Gretarsson, Helgi Ass"]
[Black "Ptacnikova, Lenka"]
[Result "1-0"]
[ECO "A34"]
[WhiteElo "2468"]
[BlackElo "2127"]
[Annotator "TA"]
[PlyCount "95"]
[EventDate "2024.04.16"]
[EventType "tourn"]
[EventCountry "ISL"]
[SourceTitle "playchess.com"]
[Source "ChessBase"]
[SourceQuality "1"]
[TimeControl "40/5400+30:1800+30"]

{[%evp 11,95,11,6,0,0,0,23,0,0,-3,0,-3,0,0,0,-37,-27,-33,-40,-47,-49,-40,-15,-7,26,33,22,37,47,49,42,53,43,26,27,26,29,29,24,23,25,25,27,16,11,12,13,10,38,15,33,33,33,33,33,33,40,41,39,15,158,156,198,148,151,100,369,370,266,152,243,127,125,68,615,615,615,615,602,602,29976,29977,29975,29976,29976,29977]} 1. Nf3 {[%emt 0:00:02]} c5 {[%emt 0:00:57]} 2. c4 {[%emt 0:00:20]} Nf6 {[%emt 0:01:22][%cal Bg8f6,Bf6d5,Bd5b4,Bb4c6,Bc6d4][%mdl 32]} 3. g3 {[%emt 0:01:46]} g6 {[%emt 0:03:12]} 4. Bg2 {[%emt 0:00:16]} Bg7 {[%emt 0:00:19]} 5. Nc3 {[%emt 0:04:35]} d5 {[%emt 0:00:44]} 6. cxd5 {[%emt 0:04:16]} Nxd5 {[%emt 0:00:06]} 7. Qb3 {[%emt 0:14:08]} Nb4 {[%emt 0:03:17]} 8. a3 {[%emt 0:00:51]} Be6 {[%emt 0:00:51]} 9. Qa4+ {[%emt 0:02:49] White has an edge.} Bd7 {[%emt 0:00:34]} 10. Qd1 {[%emt 0:01:54]} N4c6 {[%emt 0:00:45]} 11. d3 {[%emt 0:00:10]} Na6 {[%emt 0:03:25]} 12. Be3 {[%emt 0:03:59]} Nd4 {[%emt 0:06:03]} 13. Nd2 {[%emt 0:00:09]} Rb8 {[%emt 0:06:58]} 14. Nde4 {[%emt 0:12:04]} Bc6 {[%emt 0:09:48]} 15. O-O {[%emt 0:00:13]} O-O {[%emt 0:02:35]} 16. Rb1 {[%emt 0:05:56]} Rc8 {[%emt 0:17:32]} 17. b4 {[%emt 0:10:40]} cxb4 {[%emt 0:00:54]} 18. axb4 {[%emt 0:00:01][%cal Ba3b4,Bb4b5][%mdl 32]} Nc7 {[%emt 0:03:00][%cal Ba6c7,Bc7d5,Bd5c3][%mdl 32]} 19. Bxd4 {[%emt 0:23:19]} Qxd4 {[%emt 0:05:12]} 20. b5 {[%emt 0:00:53] Hoping for e3.} Bxe4 {[%emt 0:04:51]} 21. Nxe4 {[%emt 0:00:01]} Nd5 {[%emt 0:07:20]} 22. Qb3 {[%emt 0:05:27] Black must now prevent e3.} Nc3 {[%emt 0:03:45]} 23. Nxc3 {[%emt 0:00:05]} Rxc3 {[%emt 0:00:08]} 24. Qb4 {[%emt 0:00:03]} Qxb4 {[%emt 0:04:49]} 25. Rxb4 {[%emt 0:00:01]} b6 {[%emt 0:01:32]} 26. Ra4 {[%emt 0:03:47]} Rc7 {[%emt 0:00:25]} 27. d4 {[%emt 0:04:01]} Rd8 {[%emt 0:04:41]} 28. e3 {[%emt 0:00:53]} e5 {[%emt 0:04:12]} 29. d5 {[%emt 0:00:58]} f5 {[%emt 0:00:06]} 30. e4 {[%emt 0:00:09]} fxe4 {[%emt 0:01:44]} 31. Bxe4 {[%emt 0:00:04]} Bf8 {[%emt 0:00:36]} 32. Kg2 {[%emt 0:00:50]} Rdd7 {[%emt 0:01:42]} 33. h4 {[%emt 0:00:09]} Bd6 {[%emt 0:01:08] [#]} 34. h5 $1 {[%emt 0:01:04]} Kg7 {[%emt 0:00:15]} 35. Bb1 {[%emt 0:01:30]} Rc5 {[%emt 0:00:24]} (35... gxh5 $6 36. Rh1 $16) (35... Kf6 $11 {keeps the balance.}) 36. hxg6 $1 $16 {[%emt 0:00:15]} h6 {[%emt 0:01:36]} (36... Rxb5 $2 37. Bf5 (37. gxh7 Kh8 $18) 37... Re7 38. gxh7 $18) 37. Bf5 {[%emt 0:00:20]} (37. Rh1 $18 {And now Rah4 would win.} Rdc7 38. Rah4 Rxb5 39. Bf5 (39. Rxh6 Rxb1 40. Rh7+ Kxg6 $11)) 37... Rdc7 {[%emt 0:01:06]} 38. Rh1 {[%emt 0:00:58] White is more active.} ({Better is} 38. Rfa1 Rxb5 39. Rxa7 Rxd5 40. Kh3) 38... Rxb5 $2 {[%emt 0:00:40][%mdl 8192]} (38... e4 $16) 39. Rah4 $18 {[%emt 0:00:04]} Kf6 {[%emt 0:00:16] [#]} 40. Be4 {[%emt 0:00:41]} ({White should play} 40. g4 $1 $18 Rxd5 41. Rxh6) 40... Bf8 {[%emt 0:00:42] [#]} (40... Rb4 $16 41. f3 Kg7 (41... Rb2+ $2 42. Kh3 $18)) 41. g7 {[%emt 0:07:38]} Bxg7 $16 {[%emt 0:07:07]} 42. Rxh6+ {[%emt 0:00:11]} (42. d6 $16 Rc8 43. Rg4) 42... Kf7 $2 {[%emt 0:00:23][%mdl 8192]} (42... Bxh6 $14 43. Rxh6+ Kg5 44. Rg6+ Kh5) 43. d6 $18 {[%emt 0:11:48]} Rc8 {[%emt 0:00:46]} 44. Rg6 {[%emt 0:00:06] Intending Rh7 and mate.} Rb4 {[%emt 0:01:43]} 45. Rh7 {[%emt 0:00:12]} Rxe4 {[%emt 0:00:19]} 46. Rhxg7+ {[%emt 0:00:08] White mates.} Kf8 {[%emt 0:00:12]} 47. Rg8+ {[%emt 0:00:50]} ({Less strong is} 47. Rxa7 Rd8 48. Rf6+ Kg8 $18) 47... Kf7 {[%emt 0:00:07]} 48. Rxc8 {[%emt 0:00:06] Weighted Error Value: White=0.18 (very precise) /Black=0.50.  Loses game:     	---       	Black=2      Mistake:       	White=5     	Black=2      Inaccurate:     	White=1     	Black=2      OK:         	White=14    	Black=18     Best:        	White=1     	Black=3      Strong:       	White=1     	---} 1-0

[Event "Icelandic Championship 2024"]
[Site "Mosfellsbaer"]
[Date "2024.04.17"]
[Round "2.5"]
[White "Domalchuk-Jonasson, Aleksandr"]
[Black "Birkisson, Bardur Orn"]
[Result "1-0"]
[ECO "D11"]
[WhiteElo "2368"]
[BlackElo "2169"]
[Annotator "TA"]
[PlyCount "113"]
[EventDate "2024.04.16"]
[EventType "tourn"]
[EventCountry "ISL"]
[SourceTitle "playchess.com"]
[Source "ChessBase"]
[SourceQuality "1"]
[TimeControl "40/5400+30:1800+30"]

{[%evp 11,112,4,9,5,7,5,12,0,0,0,5,-8,10,8,13,8,10,-9,0,-2,10,-11,0,0,0,0,3,0,0,-64,24,22,49,27,108,0,26,29,25,0,97,95,88,45,66,75,72,51,59,51,44,0,1,1,100,81,117,120,79,24,436,439,348,31,31,19,19,0,0,0,0,0,0,0,0,0,0,0,0,-62,0,0,0,-14,-15,-10,0,0,0,-58,0,0,0,0,0,0,0,0,19,19,35,34,29999]} 1. d4 {[%emt 0:00:03]} d5 {[%emt 0:00:45]} 2. c4 {[%emt 0:00:06]} c6 {[%emt 0:00:12]} 3. Nf3 {[%emt 0:00:15]} Nf6 {[%emt 0:00:17]} 4. g3 {[%emt 0:00:19]} Bf5 {[%emt 0:00:40]} 5. Nc3 {[%emt 0:00:15]} e6 {[%emt 0:00:51]} 6. Qb3 {[%emt 0:00:14] D11: Slav Defence: 3 Nf3 sidelines and 3...Nf6 4 e3 Bg4.} Qb6 {[%emt 0:01:04]} 7. c5 {[%emt 0:00:12]} Qxb3 {[%emt 0:00:49]} 8. axb3 {[%emt 0:00:03]} Be7 {[%emt 0:02:28]} 9. Bg2 {[%emt 0:06:57]} h6 {[%emt 0:05:55]} 10. b4 {[%emt 0:09:28]} O-O {[%emt 0:02:20]} 11. h3 {[%emt 0:03:18]} Nbd7 {[%emt 0:19:09]} 12. g4 {[%emt 0:00:50]} Bh7 {[%emt 0:07:40]} 13. Bf4 {[%emt 0:02:33]} a6 {[%emt 0:04:01]} 14. O-O {[%emt 0:01:53]} Ne4 {[%emt 0:04:51]} 15. e3 {[%emt 0:14:08]} Bf6 {[%emt 0:08:28]} 16. h4 $146 {[%emt 0:13:46]} ({Predecessor:} 16. Nxe4 Bxe4 17. Bd6 Bxf3 18. Bxf3 Rfe8 19. Rad1 e5 20. dxe5 Bxe5 21. Bxe5 Nxe5 22. Be2 {0-1 Ligotti,J (1864)-Jiang,A (2213) Charlotte op 2024 (6)}) 16... Rfe8 {[%emt 0:12:20]} 17. g5 {[%emt 0:07:15]} hxg5 {[%emt 0:00:18]} 18. hxg5 {[%emt 0:00:07]} Be7 {[%emt 0:07:05]} 19. Bh3 {[%emt 0:01:16]} Nf8 {[%emt 0:01:06]} 20. Na4 {[%emt 0:21:56]} (20. Kg2 $11) 20... Ng6 {[%emt 0:05:16]} (20... Bd8 $1 $15) 21. Nb6 $11 {[%emt 0:02:55]} Nxf4 {[%emt 0:00:35]} 22. exf4 {[%emt 0:00:11]} Rad8 {[%emt 0:06:42] [#]} (22... Ra7 $11) 23. Ne5 {[%emt 0:01:17]} (23. Kg2 $1 $16) 23... Bf8 {[%emt 0:03:07]} 24. Kg2 {[%emt 0:05:44]} Nd2 $1 {[%emt 0:05:44]} ({Much worse is} 24... f6 $6 25. g6 fxe5 26. gxh7+ Kxh7 27. dxe5 $16 (27. fxe5 g6 $16)) 25. Rfd1 {[%emt 0:02:19]} Nc4 {[%emt 0:00:14]} (25... Nb3 $11 26. g6 Bxg6 27. Nxg6 Nxa1 (27... fxg6 $2 {is the wrong capture.} 28. Ra3 $18) 28. Nxf8 Kxf8 29. Rxa1 Ke7) 26. Nbxc4 $16 {[%emt 0:01:36]} dxc4 {[%emt 0:00:06]} 27. Nxc4 {[%emt 0:00:43]} Bc2 {[%emt 0:00:19]} 28. Rd2 {[%emt 0:00:32]} Bb3 {[%emt 0:00:08]} 29. Ne5 {[%emt 0:03:21]} g6 {[%emt 0:01:51]} 30. Ng4 {[%emt 0:00:44]} Bg7 {[%emt 0:00:26]} 31. Nf6+ {[%emt 0:00:03]} Bxf6 {[%emt 0:00:09]} 32. gxf6 {[%emt 0:00:02]} Rd7 {[%emt 0:00:55]} (32... e5 $1 $11 33. fxe5 Rxe5) 33. Kf3 {[%emt 0:00:45]} Red8 {[%emt 0:00:23]} 34. Ke3 {[%emt 0:00:04]} Rd5 {[%emt 0:00:40]} 35. Bg4 {[%emt 0:02:10]} (35. b5 $16 {Strongly threatening bxc6.} Rh5 36. Bg4) 35... Kf8 $2 {[%emt 0:00:33][%mdl 8192]} (35... g5 $1 $11) 36. Rh1 $18 {[%emt 0:00:29]} Ke8 {[%emt 0:00:05]} 37. Bf3 $2 {[%emt 0:00:36]} (37. Rd3 $18 Bc4 38. Rc3) 37... Rf5 $14 {[%emt 0:00:27]} 38. Rh8+ {[%emt 0:00:31]} Kd7 {[%emt 0:00:08]} 39. Rh7 {[%emt 0:00:11]} Rxf6 {[%emt 0:00:22]} 40. Bg4 {[%emt 0:00:44]} Rg8 {[%emt 0:01:26]} 41. f3 {[%emt 0:02:32]} g5 {[%emt 0:11:13]} 42. fxg5 {[%emt 0:00:24]} Rxg5 {[%emt 0:00:08]} 43. Rdh2 {[%emt 0:04:26]} Rg8 {[%emt 0:01:40]} 44. Rh8 {[%emt 0:00:22]} Rfg6 {[%emt 0:00:21]} 45. R2h7 {[%emt 0:00:16]} (45. Rxg8 $11 Rxg8 46. Rh7) 45... R6g7 {[%emt 0:16:31]} ({Better is} 45... Rxh8 $1 $15 46. Rxh8 f5) 46. Rxg7 $11 {[%emt 0:08:13]} Rxg7 {[%emt 0:00:05]} 47. Kf4 {[%emt 0:00:13]} Kc7 {[%emt 0:02:25]} 48. Bh5 {[%emt 0:15:38]} f6 {[%emt 0:00:18]} 49. Rf8 {[%emt 0:01:02]} f5 {[%emt 0:00:31]} 50. Ke5 {[%emt 0:00:51]} ({White should play} 50. Rf7+ $11 Rxf7 51. Bxf7) 50... Rd7 {[%emt 0:00:16]} (50... Rg2 $15) 51. Bf7 {[%emt 0:01:30]} Rd5+ {[%emt 0:01:47]} 52. Kxe6 {[%emt 0:00:27]} Rxd4+ {[%emt 0:00:44]} 53. Kxf5 {[%emt 0:00:27]} Rxb4 {[%emt 0:00:15]} 54. f4 {[%emt 0:00:31]} Bc2+ {[%emt 0:00:32]} 55. Kg5 {[%emt 0:00:38]} Rxb2 {[%emt 0:00:42]} 56. Be6 {[%emt 0:00:28]} Rb5 $2 {[%emt 0:00:30][%mdl 8192]} (56... b6 $14) 57. Rc8# {[%emt 0:00:04]} 1-0

[Event "Icelandic Championship 2024"]
[Site "Mosfellsbaer"]
[Date "2024.04.17"]
[Round "2.6"]
[White "Kjartansson, Gudmundur"]
[Black "Stefansson, Vignir Vatnar"]
[Result "1/2-1/2"]
[ECO "C65"]
[WhiteElo "2480"]
[BlackElo "2459"]
[Annotator "TA"]
[PlyCount "76"]
[EventDate "2024.04.16"]
[EventType "tourn"]
[EventCountry "ISL"]
[SourceTitle "playchess.com"]
[Source "ChessBase"]
[SourceQuality "1"]
[TimeControl "40/5400+30:1800+30"]

{[%evp 9,76,3,11,18,6,9,14,11,0,0,10,10,10,12,0,5,9,3,0,0,25,21,92,91,89,89,89,89,136,86,98,98,94,83,82,91,88,78,86,81,91,86,76,82,80,80,77,90,87,70,75,62,62,60,66,38,43,11,3,0,31,0,0,0,58,0,0,0,23]} 1. e4 {[%emt 0:00:03]} e5 {[%emt 0:10:08]} 2. Nf3 {[%emt 0:00:07]} Nc6 {[%emt 0:00:05]} 3. Bb5 {[%emt 0:00:07]} Nf6 {[%emt 0:00:06]} 4. d3 {[%emt 0:00:18]} Bc5 {[%emt 0:00:14]} 5. c3 {[%emt 0:00:11]} d5 {[%emt 0:00:18]} 6. exd5 {[%emt 0:00:16]} Qxd5 {[%emt 0:00:05][%cal Oc5f2] ...Bxf2+! would now be deadly.} 7. Bc4 {[%emt 0:00:07]} Qd6 {[%emt 0:00:46]} 8. b4 {[%emt 0:00:41]} Bb6 {[%emt 0:00:04]} 9. Nbd2 {[%emt 0:00:09]} Bf5 {[%emt 0:00:24]} 10. Ng5 {[%emt 0:00:33]} O-O {[%emt 0:00:20]} ({Of course not} 10... Bxd3 $6 11. Bxf7+ Ke7 12. Nc4 Bxc4 13. Bxc4 $16) 11. Nde4 $36 {[%emt 0:00:08][%mdl 2048] Black is under pressure.} Nxe4 {[%emt 0:06:39]} 12. dxe4 {[%emt 0:00:10]} Qxd1+ {[%emt 0:00:06]} 13. Kxd1 {[%emt 0:00:02]} Bg4+ {[%emt 0:00:10]} 14. f3 {[%emt 0:01:06]} Bd7 {[%emt 0:01:31]} 15. a4 {[%emt 0:00:10]} a5 {[%emt 0:02:42]} (15... a6 $11) 16. b5 $16 {[%emt 0:01:14]} Nd8 {[%emt 0:13:03]} 17. Ba3 {[%emt 0:02:44]} Re8 {[%emt 0:00:07]} 18. Kc2 {[%emt 0:05:48]} Ne6 {[%emt 0:01:49]} (18... Be6 $142 19. Nxe6 Nxe6) 19. Rhd1 {[%emt 0:08:08]} (19. Rad1 $142 {Strongly threatening Nxf7.} Rad8 20. Rd5 Nxg5 21. Rhd1) 19... Rad8 {[%emt 0:01:40] [#]} 20. Rd5 $1 {[%emt 0:19:28] White has more active pieces.} Bc8 {[%emt 0:14:28]} (20... Nxg5 $2 {loses.} 21. Rad1 $18) 21. Rxe5 {[%emt 0:08:46]} Be3 {[%emt 0:00:31] White must now prevent ...Rd2+.} 22. Nxe6 {[%emt 0:04:47]} Bxe6 {[%emt 0:00:22]} 23. Bxe6 {[%emt 0:03:15][%cal Oa3c5]} Rd2+ {[%emt 0:02:29]} 24. Kb3 {[%emt 0:00:04]} fxe6 {[%emt 0:01:19]} 25. Bc1 {[%emt 0:07:52]} Rd1 {[%emt 0:00:09] [#]} 26. Kb2 {[%emt 0:00:17]} Bxc1+ {[%emt 0:02:53]} 27. Rxc1 {[%emt 0:00:35][%mdl 4096] Endgame. KRR-KRR} Rd2+ {[%emt 0:00:06]} 28. Rc2 {[%emt 0:00:03]} Rd1 {[%emt 0:00:07]} 29. Rc5 {[%emt 0:13:34]} Re7 {[%emt 0:01:44]} 30. Rc4 {[%emt 0:01:14]} Red7 {[%emt 0:03:10] Against Rd4} 31. Rd4 {[%emt 0:03:57]} Kf7 {[%emt 0:01:08]} 32. Rxd7+ {[%emt 0:11:14]} Rxd7 $14 {[%emt 0:00:23] KR-KR} 33. c4 {[%emt 0:04:46]} Rd3 {[%emt 0:04:23]} 34. c5 {[%emt 0:00:18]} c6 {[%emt 0:01:01]} 35. Rc3 {[%emt 0:02:39]} Rd2+ {[%emt 0:01:44]} 36. Rc2 {[%emt 0:00:01]} Rd3 {[%emt 0:00:07]} 37. Rc3 {[%emt 0:02:46]} (37. Rc4 $14) 37... Rd2+ $11 {[%emt 0:00:09]} 38. Rc2 {[%emt 0:00:03]} Rd3 {[%emt 0:01:13] Weighted Error Value: White=0.08 (flawless) /Black=0.08 (flawless) .  Mistake:       	White=2     	Black=2      Inaccurate:     	White=2     	Black=1      OK:         	White=13    	Black=16     Best:        	White=3     	Black=6} 1/2-1/2